bitfinex-derivatives/quotes_ETHF0:USTF0_20251007
["timestamp","ask_amount","ask_price","bid_price","bid_amount"]
[1759816411893,3.69866814,4716.3,4716.2,0.58550309]
[1759816413905,3.69866814,4716.3,4716.2,0.29263409]
[1759816414804,3.69866814,4716.3,4716.2,0.50983409]
[1759816415205,3.48666814,4716.3,4716.2,0.50983409]
[1759816415405,3.69866814,4716.3,4716.2,0.50983409]
[1759816415707,3.69866814,4716.3,4716.2,1.04283409]
[1759816416906,3.4839589,4716.3,4716.2,1.04283409]
[1759816417106,3.6959589,4716.3,4716.2,1.04283409]
[1759816418209,0.21640686,4716.3,4716.2,1.04283409]
[1759816418405,0.00220686,4716.3,4716.2,1.04283409]
[1759816418804,0.00220686,4716.3,4716.2,6.04283409]
[1759816419003,0.00220686,4716.3,4716.2,6.25483409]
[1759816419505,3.2078,4717.2,4717.1,1.1173]
[1759816419711,3.2078,4717.2,4717.1,1.40993409]
[1759816420006,3.4263,4717.2,4717.1,1.40993409]
[1759816420208,3.2078,4717.2,4717.1,1.40993409]
[1759816420407,3.20964048,4717.2,4717.1,1.40993409]
[1759816420601,3.95914048,4717.2,4717.1,0.71303409]
[1759816421213,3.95914048,4717.2,4717.1,1.02853409]
[1759816422202,3.42814048,4717.2,4717.1,1.02853409]
[1759816422712,0.75134048,4717.2,4717.1,1.02853409]
[1759816423206,0.53994048,4717.2,4717.1,1.02853409]
[1759816423411,0.00184048,4717.2,4717.1,1.04199579]
[1759816423718,0.53994048,4717.2,4717.1,1.04199579]
[1759816424709,0.75134048,4717.2,4717.1,0.30609579]
[1759816424908,3.77298848,4717.2,4717.1,0.30609579]
[1759816425705,0.75134048,4717.2,4717.1,0.51349579]
[1759816426112,0.96334048,4717.2,4717.1,1.04199579]
[1759816427514,0.75134048,4717.2,4717.1,0.51349579]
[1759816427814,0.75134048,4717.2,4717.1,1.04199579]
[1759816429109,0.75134048,4717.2,4717.1,0.7359]
[1759816429313,0.75134048,4717.2,4717.1,1.04141257]
[1759816430519,0.75134048,4717.2,4717.1,0.72591257]
[1759816430914,0.75134048,4717.2,4717.1,1.04141257]
[1759816431817,0.32144048,4717.2,4717.1,1.04141257]
[1759816432112,0.75134048,4717.2,4717.1,1.04141257]
[1759816433614,0.75134048,4717.2,4717.1,0.51291257]
[1759816434613,0.75134048,4717.2,4717.1,0.30551257]
[1759816434822,3.54486993,4717.2,4717.1,0.30551257]
[1759816435521,1.25534,4716.5,4716.4,3.2078]
[1759816435722,1.25534,4716.5,4715.9,3.2078]
[1759816435723,0.5543,4716.0,4715.9,3.2078]
[1759816436016,0.22313081,4716.0,4715.9,3.9437]
[1759816436713,0.2185,4716.2,4716.1,0.80187]
[1759816436918,0.2185,4716.2,4716.1,1.11737]
[1759816437720,2.79711593,4716.4,4716.1,0.80187]
[1759816437919,0.2185,4716.3,4716.2,0.7359]
[1759816438113,0.22120924,4716.3,4716.2,0.7359]
[1759816438316,0.2185,4716.3,4716.2,0.7359]
[1759816438922,0.22120924,4716.3,4716.2,0.7359]
[1759816439923,0.81406924,4716.3,4716.2,0.7359]
[1759816440115,1.13366924,4716.3,4716.2,0.7359]
[1759816440615,1.13098,4716.1,4716.0,0.5229]
[1759816440818,1.13368924,4716.1,4716.0,0.8559]
[1759816441027,0.00270924,4716.1,4716.0,0.8559]
[1759816441323,0.43260924,4716.1,4716.0,0.8559]
[1759816441524,0.75220924,4716.1,4716.0,0.5229]
[1759816442220,0.75220924,4716.1,4716.0,0.7359]
[1759816442424,0.43260924,4716.1,4716.0,0.8559]
[1759816444426,0.73280924,4716.1,4716.0,0.8559]
[1759816446323,0.73280924,4716.1,4716.0,0.7359]
[1759816446627,0.73280924,4716.1,4715.9,3.9388]
[1759816446628,0.4113,4716.0,4715.9,3.9388]
[1759816446831,0.21580924,4716.0,4715.9,3.9388]
[1759816447123,0.2131,4716.0,4715.9,3.9388]
[1759816447526,0.212,4716.2,4715.9,4.32029]
[1759816447725,0.2131,4716.2,4716.1,0.731]
[1759816448124,2.75486203,4716.2,4716.1,0.731]
[1759816448430,2.96796203,4716.2,4716.1,0.731]
[1759816450527,3.16616203,4716.2,4716.1,0.731]
[1759816450727,3.46636203,4716.2,4716.1,0.731]
[1759816451431,2.96796203,4716.2,4716.1,0.731]
[1759816451825,3.17996203,4716.2,4716.1,0.731]
[1759816452719,2.96796203,4716.2,4716.1,0.731]
[1759816452923,3.17996203,4716.2,4716.1,0.731]
[1759816453825,2.96796203,4716.2,4716.1,0.731]
[1759816454033,3.17996203,4716.2,4716.1,0.731]
[1759816454828,2.75486203,4716.2,4716.1,0.731]
[1759816455033,3.42274048,4717.2,4717.1,0.731]
[1759816455325,3.83294048,4717.2,4717.1,0.731]
[1759816455531,4.13314048,4717.2,4717.1,0.731]
[1759816455732,0.92534048,4717.2,4717.1,0.731]
[1759816455936,0.92534048,4717.2,4717.1,0.5298]
[1759816456330,0.92534048,4717.2,4716.5,0.1217]
[1759816456331,0.4113,4717.0,4716.9,0.329]
[1759816456633,0.71420924,4717.0,4716.9,0.5298]
[1759816456827,0.7115,4717.0,4716.9,0.5298]
[1759816457433,0.7115,4717.0,4716.9,0.731]
[1759816457633,0.4113,4717.0,4716.9,0.731]
[1759816457934,0.42694048,4717.2,4717.1,0.731]
[1759816458334,0.00184048,4717.2,4717.1,0.731]
[1759816458935,0.21494048,4717.2,4717.1,0.731]
[1759816460639,0.00184048,4717.2,4717.1,0.731]
[1759816461534,0.00184048,4717.2,4717.1,1.48329282]
[1759816462433,0.00184048,4717.2,4717.1,1.69529282]
[1759816462934,0.00184048,4717.2,4717.1,0.943]
[1759816463132,0.00184048,4717.2,4717.1,5.943]
[1759816463328,3.2078,4718.2,4717.1,5.943]
[1759816463329,3.58911,4718.2,4717.8,0.78334]
[1759816463528,0.38132,4718.1,4717.8,0.731]
[1759816463736,0.2351,4717.9,4717.8,0.731]
[1759816464135,0.4333,4717.9,4717.8,0.731]
[1759816464439,0.43559365,4717.9,4717.8,0.731]
[1759816464937,0.43559365,4717.9,4717.8,0.5298]
[1759816464938,0.73579365,4717.9,4717.8,0.5298]
[1759816465633,0.73579365,4717.9,4717.8,0.731]
[1759816468139,0.23739365,4717.9,4717.8,0.731]
[1759816468739,0.02429365,4717.9,4717.8,0.731]
[1759816469143,0.23739365,4717.9,4717.8,0.731]
[1759816469644,0.73579365,4717.9,4717.8,0.5298]
[1759816469941,3.67083328,4717.9,4717.8,0.329]
[1759816470242,3.67083328,4717.9,4717.5,0.1217]
[1759816470243,0.7115,4717.7,4717.6,0.5298]
[1759816470738,3.40990565,4717.7,4717.6,0.5298]
[1759816470939,3.40990565,4717.7,4717.6,0.731]
[1759816475536,3.40990565,4717.7,4717.6,0.5298]
[1759816476842,3.40990565,4717.7,4717.6,0.7297]
[1759816477544,0.2131,4717.7,4717.6,0.7297]
[1759816477843,0.59334,4717.8,4717.7,0.302]
[1759816478145,1.33514,4717.8,4717.7,0.7334]
[1759816478350,1.33784924,4717.8,4717.7,0.7334]
[1759816480044,0.38135,4717.6,4717.0,3.3295]
[1759816480246,0.2105,4717.2,4717.1,0.7334]
[1759816480443,0.2105,4717.2,4717.1,1.11479]
[1759816481148,0.8083,4717.0,4716.9,0.5173]
[1759816481446,1.1232,4717.0,4716.9,0.5173]
[1759816481648,1.1232,4717.0,4716.9,0.7334]
[1759816483144,1.12590924,4717.0,4716.9,0.5173]
[1759816484355,1.12590924,4717.0,4716.9,0.302]
[1759816485060,1.12590924,4717.0,4716.9,0.5173]
[1759816485763,0.42960924,4717.0,4716.9,1.48569282]
[1759816486554,0.21320924,4717.0,4716.9,1.48569282]
[1759816486754,0.00270924,4717.0,4716.9,1.48569282]
[1759816486959,0.38136,4717.6,4717.5,0.3401]
[1759816487262,3.83248157,4717.6,4717.5,0.8582]
[1759816487562,3.83519081,4717.6,4717.5,0.8582]
[1759816488259,3.83519081,4717.6,4717.5,0.7334]
[1759816488451,0.69628,4717.3,4717.2,40.8]
[1759816488661,1.13067483,4717.3,4717.2,40.8]
[1759816488858,1.13067483,4717.3,4717.2,41.102]
[1759816489159,1.55757483,4717.3,4717.2,0.302]
[1759816491761,1.55757483,4717.3,4717.2,0.5173]
[1759816492056,1.55757483,4717.3,4717.2,0.7334]
[1759816492364,0.86129483,4717.3,4717.2,0.7334]
[1759816492554,1.17619483,4717.3,4717.2,0.7334]
[1759816495760,0.86129483,4717.3,4717.2,0.7334]
[1759816496265,1.17619483,4717.3,4717.2,0.5173]
[1759816497053,0.7418,4716.8,4716.7,0.59672]
[1759816497258,1.17348559,4716.8,4716.7,0.59672]
[1759816497659,1.17348559,4716.8,4716.7,1.11482]
[1759816498366,0.85858559,4716.8,4716.7,1.11482]
[1759816500366,0.86013088,4716.8,4716.7,1.11482]
[1759816500864,0.43323088,4716.8,4716.7,1.11482]
[1759816501068,4.16107,4718.2,4717.5,0.8582]
[1759816501365,0.59455924,4717.6,4717.5,0.8582]
[1759816501563,1.02774459,4717.6,4717.5,0.8582]
[1759816502563,0.43318535,4717.6,4717.5,0.8582]
[1759816502966,0.40562365,4717.9,4717.5,1.23956]
[1759816503167,1.02500413,4717.8,4717.7,0.4314]
[1759816503468,1.02500413,4717.8,4717.7,0.7334]
[1759816503860,0.02429365,4717.9,4717.8,0.302]
[1759816504061,0.02429365,4717.9,4717.8,0.7334]
[1759816504463,0.22309365,4717.9,4717.8,41.5334]
[1759816504770,0.52059365,4717.9,4717.8,41.5334]
[1759816504965,0.95363573,4717.9,4717.8,41.5334]
[1759816505172,3.7693146,4717.9,4717.8,41.0153]
[1759816505464,3.7693146,4717.9,4717.8,41.3424]
[1759816505771,0.2975,4717.5,4717.2,0.3271]
[1759816505971,0.6979,4717.3,4717.2,0.5314]
[1759816506168,1.08198924,4717.3,4717.2,0.5314]
[1759816506369,3.77809918,4717.3,4717.2,0.5314]
[1759816506764,3.82980217,4717.3,4717.2,0.7467]
[1759816506966,3.53230217,4717.3,4717.2,0.7467]
[1759816507474,3.82980217,4717.3,4717.2,0.7467]
[1759816509867,3.82709293,4717.3,4717.2,0.7467]
[1759816510074,3.82980217,4717.3,4717.2,0.7467]
[1759816510373,0.43308299,4717.3,4717.2,0.7467]
[1759816510562,0.38136,4717.6,4717.2,0.4196]
[1759816510563,0.59336,4717.6,4717.2,0.4196]
[1759816510767,0.1988,4717.4,4717.3,0.7467]
[1759816510965,0.63192853,4717.4,4717.3,0.7467]
[1759816513973,1.13102853,4717.4,4717.3,0.7467]
[1759816515879,1.13104951,4717.4,4717.3,0.7467]
[1759816516277,0.83354951,4717.4,4717.3,0.7467]
[1759816516579,1.13104951,4717.4,4717.3,0.7467]
[1759816516778,0.6979,4717.2,4717.1,0.3271]
[1759816516980,1.13375875,4717.2,4717.1,0.3271]
[1759816517271,1.13104951,4717.2,4717.1,0.5314]
[1759816519578,0.83354951,4717.2,4717.1,0.7467]
[1759816519980,1.13104951,4717.2,4717.1,0.7467]
[1759816523184,0.6979,4716.7,4716.6,4.76549836]
[1759816523580,0.6979,4716.7,4716.6,5.09259836]
[1759816523776,0.4004,4716.7,4716.6,5.09259836]
[1759816524178,0.5802,4717.1,4717.0,0.3291]
[1759816524387,1.0793,4717.1,4717.0,0.8715]
[1759816524682,3.88566409,4717.1,4717.0,0.8715]
[1759816524877,3.88566409,4717.1,4717.0,0.7467]
[1759816525682,0.1988,4716.8,4716.7,0.3271]
[1759816525880,0.78186,4716.3,4716.2,0.3271]
[1759816526182,3.83602224,4716.3,4716.2,0.7467]
[1759816526384,3.83864878,4716.3,4716.2,0.7467]
[1759816527284,3.40396395,4716.3,4716.2,0.7467]
[1759816531186,3.40396395,4716.3,4716.1,3.2078]
[1759816531187,0.78187,4716.2,4716.1,3.2078]
[1759816531385,1.08207924,4716.2,4716.1,3.2078]
[1759816531576,3.83874525,4716.2,4716.1,3.2078]
[1759816532388,0.78188,4716.0,4715.9,0.5314]
[1759816532589,1.08208924,4716.0,4715.9,0.5314]
[1759816533093,0.70060924,4716.0,4715.9,0.7467]
[1759816536780,3.51722423,4716.0,4715.6,0.00243506]
[1759816536993,0.74750924,4715.8,4715.7,0.309]
[1759816537286,0.38151,4715.7,4715.6,0.00243506]
[1759816537495,1.77739397,4715.7,4715.6,0.00243506]
[1759816537787,4.52505806,4715.7,4715.6,0.00243506]
[1759816540185,4.52505806,4715.7,4715.6,0.51093506]
[1759816540385,4.08868333,4715.7,4715.6,0.51093506]
[1759816541690,4.08868333,4715.7,4715.6,0.31143506]
[1759816542781,4.08868333,4715.7,4715.6,0.51093506]
[1759816542980,4.08868333,4715.7,4715.6,0.72963506]
[1759816544790,4.08868333,4715.7,4715.6,0.51093506]
[1759816545586,4.08868333,4715.7,4715.6,0.00243506]
[1759816548897,4.08868333,4715.7,4715.6,0.51093506]
[1759816549484,4.08868333,4715.7,4715.6,0.31143506]
[1759816549689,4.08868333,4715.7,4715.6,0.00243506]
[1759816550296,4.52447337,4715.7,4715.6,0.00243506]
[1759816553494,4.52447337,4715.7,4715.6,0.31143506]
[1759816554796,4.31247337,4715.7,4715.6,0.31143506]
[1759816555092,4.52447337,4715.7,4715.6,0.00243506]
[1759816555999,0.38157,4714.9,4714.8,0.309]
[1759816556196,0.4296,4714.7,4714.6,0.309]
[1759816556407,0.7448,4714.3,4714.2,0.7272]
[1759816556698,0.2164,4714.7,4714.6,0.7272]
[1759816556998,0.2164,4714.7,4714.6,0.72915213]
[1759816556999,0.43002472,4714.7,4714.6,0.72915213]
[1759816559994,0.00162472,4714.7,4714.6,0.72915213]
[1759816560394,0.21802472,4714.7,4714.6,0.72915213]
[1759816560599,0.53322472,4714.7,4714.6,0.72915213]
[1759816560798,0.74642472,4714.7,4714.6,0.72915213]
[1759816562098,0.43122472,4714.7,4714.6,0.72915213]
[1759816564004,0.00162472,4714.7,4714.6,5.72915213]
[1759816564504,0.00162472,4714.7,4714.6,6.86725049]
[1759816564803,0.00162472,4714.7,4714.6,5.72915213]
[1759816565001,3.7456,4715.7,4715.6,0.7472]
[1759816565199,4.47272683,4715.7,4715.6,0.7472]
[1759816565400,7.19696781,4715.7,4715.6,0.7472]
[1759816565903,7.19934048,4715.7,4715.6,0.7472]
[1759816566204,7.58085048,4715.7,4715.6,0.7472]
[1759816566896,7.12534048,4715.7,4715.6,0.7472]
[1759816567097,3.6452995,4715.7,4715.6,0.7472]
[1759816567902,3.21017267,4715.7,4715.6,0.7472]
[1759816568292,3.46346502,4715.7,4715.6,0.5318]
[1759816568504,3.52187502,4715.7,4715.3,1.14290901]
[1759816568699,0.7558,4715.5,4715.4,0.5318]
[1759816569001,0.00237267,4715.7,4715.5,0.4585]
[1759816569200,0.00237267,4715.7,4715.6,0.7472]
[1759816570496,0.21707267,4715.7,4715.6,0.7472]
[1759816573107,0.43507267,4715.7,4715.6,0.7472]
[1759816573902,3.55171715,4715.7,4715.6,0.7472]
[1759816574204,3.55171715,4715.7,4715.6,0.5318]
[1759816575203,0.59953,4715.4,4715.3,0.5318]
[1759816575398,1.14003924,4715.4,4715.3,0.5318]
[1759816575595,3.85040141,4715.4,4715.3,0.5318]
[1759816575803,3.85040141,4715.4,4715.3,0.7472]
[1759816577105,3.85040141,4715.4,4715.3,0.5318]
[1759816578393,4.06240141,4715.4,4715.3,0.5318]
[1759816579905,3.68087141,4715.4,4715.3,0.5318]
[1759816581808,3.68087141,4715.4,4715.3,0.7472]
[1759816582005,0.4267,4715.4,4715.3,0.7472]
[1759816582702,0.59858267,4715.7,4715.6,0.4197]
[1759816583008,4.49069949,4715.7,4715.6,0.7472]
[1759816585198,3.35338949,4715.7,4715.2,0.3275]
[1759816585405,0.7558,4715.3,4715.2,0.5318]
[1759816586211,0.7558,4715.3,4715.2,0.7472]
[1759816592524,0.3231,4715.1,4715.0,3.2078]
[1759816592728,0.3231,4714.9,4714.8,0.3275]
[1759816592918,0.7558,4714.9,4714.8,0.3275]
[1759816593319,0.7558,4714.9,4714.6,1.14486114]
[1759816593320,0.3231,4714.7,4714.6,1.14486114]
[1759816593620,3.49598254,4714.7,4714.6,0.53375213]
[1759816593821,0.38156,4715.1,4714.6,0.42165213]
[1759816594028,0.2147,4715.1,4715.0,4.086]
[1759816594319,1.16004119,4715.1,4715.0,0.7472]
[1759816594525,1.16275043,4715.1,4715.0,0.5318]
[1759816594826,0.7275,4714.8,4714.7,0.2012]
[1759816595223,0.7275,4714.8,4714.7,0.5286]
[1759816595422,0.7275,4714.8,4714.7,0.7382]
[1759816601628,1.11039,4714.7,4714.6,0.00195213]
[1759816601931,4.31845798,4714.7,4714.6,0.00195213]
[1759816602133,4.31574874,4714.7,4714.6,0.00195213]
[1759816602535,4.31574874,4714.7,4714.6,0.51105213]
[1759816603031,4.31574874,4714.7,4714.6,0.30655213]
[1759816603336,4.31574874,4714.7,4714.6,0.00195213]
[1759816604532,4.52774874,4714.7,4714.6,0.00195213]
[1759816606526,9.79014874,4714.7,4713.7,1.14290901]
[1759816606727,0.2031,4713.2,4713.1,0.3046]
[1759816606933,0.2031,4713.2,4713.1,0.7071]
[1759816607326,0.2031,4713.2,4713.0,0.50372]
[1759816607327,0.4188,4713.2,4713.0,0.38172]
[1759816607535,1.11054,4712.9,4712.8,0.3046]
[1759816607735,0.7288,4712.9,4712.8,0.51067341]
[1759816608137,0.7288,4712.9,4712.8,0.70867341]
[1759816610539,0.9408,4712.9,4712.8,0.00157341]
[1759816610741,3.7420401,4712.9,4712.8,0.00157341]
[1759816611034,3.7420401,4712.9,4712.8,0.51067341]
[1759816613137,3.7420401,4712.9,4712.8,0.00157341]
[1759816616739,3.7420401,4712.9,4712.8,0.30617341]
[1759816617034,3.7420401,4712.9,4712.8,0.00157341]
[1759816620137,3.7420401,4712.9,4712.8,0.30617341]
[1759816620345,3.7420401,4712.9,4712.8,0.51067341]
[1759816620839,3.0043401,4712.9,4712.8,0.70867341]
[1759816621136,3.6266,4713.3,4713.2,0.7071]
[1759816621339,4.1486,4713.3,4713.2,0.7071]
[1759816621535,6.84939271,4713.3,4713.2,0.7071]
[1759816621743,6.84939271,4713.3,4713.2,0.5091]
[1759816622944,6.32739271,4713.3,4713.2,0.7071]
[1759816623145,6.53939271,4713.3,4713.2,0.7071]
[1759816623546,3.33159271,4713.3,4713.2,0.7071]
[1759816623847,3.64159271,4713.3,4713.2,0.3046]
[1759816624041,0.38171,4713.2,4712.8,0.00157341]
[1759816624247,0.38171,4713.2,4712.9,0.5271]
[1759816624248,0.7178,4713.0,4712.9,0.5271]
[1759816624545,0.9298,4713.0,4712.9,0.5271]
[1759816625343,0.6194,4713.0,4712.9,0.734]
[1759816626346,0.4074,4713.0,4712.9,0.734]
[1759816626545,0.7178,4713.0,4712.9,0.734]
[1759816626945,0.208,4713.0,4712.9,0.734]
[1759816627138,0.208,4713.0,4712.8,0.38331341]
[1759816627139,0.42,4713.1,4713.0,1.24143]
[1759816628243,0.208,4713.1,4713.0,0.8597]
[1759816628444,0.9298,4713.1,4713.0,0.8597]
[1759816628948,0.9298,4713.1,4713.0,0.5271]
[1759816629847,0.7178,4712.9,4712.8,0.00157341]
[1759816630054,0.72050924,4712.9,4712.8,0.00157341]
[1759816630252,3.47179701,4712.9,4712.8,0.00157341]
[1759816631153,3.47179701,4712.9,4712.8,0.52867341]
[1759816631349,3.47179701,4712.9,4712.8,0.73557341]
[1759816631751,3.68379701,4712.9,4712.8,0.73557341]
[1759816633853,3.68379701,4712.9,4712.8,0.00157341]
[1759816634655,3.68379701,4712.9,4712.8,0.52867341]
[1759816635156,3.68379701,4712.9,4712.8,0.73557341]
[1759816636257,4.12205525,4712.9,4712.8,0.73557341]
[1759816636559,4.12205525,4712.9,4712.8,0.00157341]
[1759816642762,4.12205525,4712.9,4712.8,0.52867341]
[1759816644554,3.16139701,4712.9,4712.8,1.11731341]
[1759816644759,3.37339701,4712.9,4712.8,1.11731341]
[1759816645663,3.68379701,4712.9,4712.8,0.73557341]
[1759816646166,4.1226322,4712.9,4712.8,0.73557341]
[1759816646367,4.12265364,4712.9,4712.8,0.73557341]
[1759816646662,3.68379701,4712.9,4712.8,0.73557341]
[1759816647565,4.12265302,4712.9,4712.8,0.73557341]
[1759816647765,3.68379701,4712.9,4712.8,0.73557341]
[1759816648466,4.12268961,4712.9,4712.8,0.73557341]
[1759816649367,4.12268961,4712.9,4712.8,0.52867341]
[1759816649667,4.12268961,4712.9,4712.8,0.00157341]
[1759816650063,7.33048961,4712.9,4712.8,0.00157341]
[1759816652360,0.7178,4711.9,4711.8,3.2078]
[1759816652562,0.9298,4711.9,4711.8,3.5184]
[1759816652765,3.65434015,4711.9,4711.8,3.7349]
[1759816653370,3.6563806,4711.9,4711.8,3.94350938]
[1759816653565,3.3459806,4711.9,4711.8,3.94350938]
[1759816653966,3.1339806,4711.9,4711.8,3.94350938]
[1759816654269,0.21404045,4711.9,4711.8,8.94350938]
[1759816655468,0.00204045,4711.9,4711.8,8.94350938]
[1759816656366,0.20954045,4711.9,4711.8,3.94350938]
[1759816656770,0.20954045,4711.9,4711.8,44.74350938]
[1759816657462,0.53834045,4711.9,4711.8,44.74350938]
[1759816657662,0.74344045,4711.9,4711.8,3.94350938]
[1759816657865,0.41464045,4711.9,4711.8,3.94350938]
[1759816658669,0.74344045,4711.9,4711.8,3.94350938]
[1759816659170,3.55012963,4711.9,4711.8,3.94350938]
[1759816662063,3.22132963,4711.9,4711.8,3.94350938]
[1759816667777,3.43332963,4711.9,4711.8,3.94350938]
[1759816668572,0.42154045,4711.9,4711.8,3.94350938]
[1759816668878,0.75034045,4711.9,4711.8,3.94350938]
[1759816669076,0.95544045,4711.9,4711.8,3.94350938]
[1759816669874,0.62664045,4711.9,4711.8,3.94350938]
[1759816670877,0.95544045,4711.9,4711.8,3.73660938]
[1759816672781,0.95544045,4711.9,4711.8,3.95480938]
[1759816673285,0.62664045,4711.9,4711.8,3.95480938]
[1759816676086,1.06554536,4711.9,4711.8,3.95480938]
[1759816676688,0.86044536,4711.9,4711.8,3.95480938]
[1759816680589,0.44094536,4711.9,4711.8,3.95480938]
[1759816682585,3.2078,4712.9,4712.8,0.747]
[1759816682786,0.43945302,4712.9,4712.8,0.747]
[1759816682990,0.43945302,4712.9,4712.8,41.547]
[1759816683583,0.44190388,4712.9,4712.8,41.547]
[1759816683783,0.00245086,4712.9,4712.8,41.547]
[1759816687788,0.38166,4713.9,4713.8,0.215]
[1759816688091,0.38166,4713.9,4713.8,0.7377]
[1759816688092,3.15972227,4713.9,4713.8,0.7377]
[1759816688395,3.4167,4714.6,4714.5,0.5389]
[1759816688686,7.10455472,4714.6,4714.5,0.7377]
[1759816688891,7.10977793,4714.6,4714.5,0.7377]
[1759816689095,7.10977793,4714.6,4714.5,0.8629]
[1759816689292,6.67159455,4714.6,4714.5,0.8629]
[1759816689487,3.46379455,4714.6,4714.5,0.8629]
[1759816689683,0.21412321,4714.6,4714.5,0.8629]
[1759816689888,3.54732182,4714.6,4714.5,0.7377]
[1759816690193,3.55003106,4714.6,4714.5,0.7377]
[1759816690582,3.55003106,4714.6,4714.5,0.324]
[1759816690782,0.7373,4714.1,4714.0,0.324]
[1759816690988,0.74000924,4714.1,4714.0,0.324]
[1759816691187,3.46993068,4714.1,4714.0,0.324]
[1759816692791,3.85157068,4714.1,4713.6,0.38167]
[1759816693092,0.7373,4713.6,4713.5,0.324]
[1759816693290,0.74000924,4713.6,4713.5,0.324]
[1759816693489,3.46886757,4713.6,4713.5,0.539]
[1759816693700,3.46886757,4713.6,4713.5,0.8629]
[1759816693892,3.14606757,4713.6,4713.5,0.8629]
[1759816697788,0.2089,4713.9,4713.8,1.11936]
[1759816698196,2.90585415,4713.9,4713.8,0.7377]
[1759816698592,3.43425415,4713.9,4713.8,0.7377]
[1759816699192,0.2089,4713.9,4713.8,0.7377]
[1759816701402,0.212,4714.0,4713.9,1.11935]
[1759816701697,1.11891,4714.5,4714.4,0.7377]
[1759816701896,1.33091,4714.5,4714.4,0.7377]
[1759816702099,4.05934367,4714.5,4714.4,0.7377]
[1759816702599,3.46573367,4714.5,4714.4,0.7377]
[1759816702795,3.67773367,4714.5,4714.4,0.539]
[1759816703499,0.7373,4714.2,4714.1,0.539]
[1759816703701,0.74000924,4714.2,4714.1,0.539]
[1759816703900,0.7373,4714.2,4714.1,0.539]
[1759816704297,0.7373,4714.2,4714.1,0.7377]
[1759816704594,0.2089,4714.2,4714.1,0.7377]
[1759816704795,0.2089,4714.2,4714.0,0.50684]
[1759816704796,0.4145,4714.5,4714.4,0.7377]
[1759816705002,0.9493,4714.5,4714.4,0.539]
[1759816705303,3.75367594,4714.5,4714.4,0.539]
[1759816706398,3.75367594,4714.5,4714.4,0.7377]
[1759816706996,3.75367594,4714.5,4714.4,0.539]
[1759816707197,3.54167594,4714.5,4714.4,0.324]
[1759816707504,0.7373,4714.1,4714.0,0.7377]
[1759816707696,0.4145,4713.6,4713.5,1.24458]
[1759816708003,0.2089,4713.6,4713.5,1.24458]
[1759816708199,0.2089,4713.6,4713.5,42.04458]
[1759816708392,0.5317,4713.6,4713.5,41.5377]
[1759816708592,0.7373,4713.6,4713.5,0.7377]
[1759816708901,0.7373,4713.6,4713.3,3.5318]
[1759816708902,0.70449,4713.5,4713.3,3.5318]
[1759816709098,0.41720924,4713.4,4713.3,3.7468]
[1759816709299,3.46471057,4713.4,4713.3,3.7468]
[1759816709597,3.13920133,4713.4,4713.3,3.9455]
[1759816709803,3.52089133,4713.4,4713.3,3.9455]
[1759816710604,3.13920133,4713.4,4713.3,3.9455]
[1759816712602,3.46200133,4713.4,4713.3,3.9455]
[1759816713302,3.67400133,4713.4,4713.3,3.9455]
[1759816714106,0.79623,4713.0,4712.9,0.7377]
[1759816714296,1.11493,4713.0,4712.9,0.7377]
[1759816714494,3.53962778,4713.0,4712.9,0.7377]
[1759816717706,3.84532778,4713.0,4712.9,0.7377]
[1759816728010,2.74339778,4713.0,4712.9,0.7377]
[1759816728314,0.4097,4713.1,4713.0,0.3454]
[1759816728523,0.7154,4713.1,4713.0,0.2157]
[1759816728913,0.7154,4713.1,4713.0,0.5386]
[1759816730215,0.7154,4712.9,4712.8,3.2078]
[1759816730415,0.93010924,4712.9,4712.8,3.2078]
[1759816730618,3.71900595,4712.9,4712.8,3.2078]
[1759816731824,4.10074595,4712.9,4712.7,0.3229]
[1759816732123,4.10074595,4712.9,4712.8,0.3229]
[1759816732922,0.4097,4712.5,4712.4,1.11847]
[1759816733221,0.7154,4712.5,4712.4,1.11847]
[1759816735821,0.4097,4712.5,4712.4,1.11847]
[1759816737216,0.59374,4712.9,4712.7,0.38175]
[1759816737417,0.59374,4712.9,4712.8,0.7367]
[1759816737611,0.79184,4712.9,4712.8,0.7367]
[1759816737816,1.30914,4712.9,4712.8,0.7367]
[1759816738222,1.09714,4712.9,4712.8,0.7367]
[1759816741627,1.09714,4712.9,4712.6,0.3229]
[1759816741628,1.09716,4712.7,4712.6,0.3229]
[1759816741926,0.7154,4712.7,4712.6,0.5386]
[1759816742629,0.7154,4712.7,4712.6,0.7367]
[1759816743627,0.1981,4713.0,4712.9,0.79553]
[1759816743826,0.84899177,4713.0,4712.9,0.7367]
[1759816744027,1.15740101,4713.0,4712.9,0.7367]
[1759816745527,1.15740101,4713.0,4712.9,0.5386]
[1759816749931,1.15469177,4713.0,4712.9,0.5386]
[1759816750130,1.15740101,4713.0,4712.9,0.5386]
[1759816751432,0.84899177,4713.0,4712.9,0.7419]
[1759816753028,0.63739177,4713.0,4712.9,0.7419]
[1759816757333,0.63737101,4713.0,4712.9,0.7419]
[1759816757735,3.2078,4713.5,4713.3,0.3022]
[1759816757936,0.6505826,4713.4,4713.3,0.7061]
[1759816758235,0.4419826,4713.4,4713.3,0.7061]
[1759816758424,0.43927336,4713.4,4713.3,0.7061]
[1759816759325,0.64787336,4713.4,4713.3,0.7061]
[1759816759935,1.18927336,4713.4,4713.3,0.7061]
[1759816760534,1.18927336,4713.4,4713.3,0.3022]
[1759816761235,1.18927336,4713.4,4713.3,0.5028]
[1759816761633,1.13172,4713.1,4713.0,0.5284]
[1759816762133,0.2086,4713.4,4713.3,0.7061]
[1759816762529,2.9738835,4713.4,4713.3,0.7061]
[1759816762736,0.2086,4713.4,4713.3,0.7061]
[1759816763138,0.6476611,4713.4,4713.3,0.7061]
[1759816764033,0.9702611,4713.4,4713.3,0.7061]
[1759816764335,0.6476611,4713.4,4713.3,0.7061]
[1759816764730,0.9702611,4713.4,4713.3,0.7061]
[1759816764931,1.1890611,4713.4,4713.3,0.7061]
[1759816767035,0.8664611,4713.4,4713.3,0.7061]
[1759816767228,0.6476611,4713.4,4713.3,0.7061]
[1759816768341,0.4390611,4713.4,4713.3,0.7061]